Cogmind - Beta 16 @@@ ROGUE MODE // 2025.11.06 @ 22:50:24 Player: GiggleBox Result: Destroyed by G-67 Veteran with Field Laser Performance ------------- Evolutions (7) 3500 Regions Visited (22) 4400 Robots Destroyed (303) 1515 Value Destroyed (16005) 16005 Prototype IDs (49) 980 Alien Tech Used (0) 0 Bonus (14213) 14213 TOTAL SCORE: 40613 Bonus ------- Triggered Max Security 1000 High Alert Combat Kills 2182 Follower Combat Kills 3871 Entered Garrisons 1200 Used RIF Installer 3000 Aligned with FarCom 300 Built Enhanced Grunts 300 A7 Reached Mainframe 300 Met R17 at Cetus 500 Met R17 at Research 2000 Friendly Fire -440 Cogmind --------- Core Integrity 0/1300 Matter 231/300 Energy 100/100 System Corruption 9% Temperature Cool (21) Movement Core (50) Location -3/Testing Parts ------- > --- POWER (2) -------- (None) > --- PROPULSION (6) --- (None) > --- UTILITY (10) ----- (None) > --- WEAPON (3) ------- (None) > --- INVENTORY (5) ---- Quantum Capacitor Advanced Force Field Advanced Point Defense System Enhanced Nova Cannon Peak State ------------ > --- POWER ------------ Compact Particle Reactor Quantum Reactor > --- PROPULSION ------- Flexi-carbon Leg Flexi-carbon Leg Myomer Leg Myomer Leg Myomer Leg > --- UTILITY ---------- Advanced Cryofiber Web Advanced Heat Sink Advanced Heat Sink Advanced Heat Sink High-capacity Storage Unit Improved Energy Well Centrium Medium Armor Plating Advanced Force Field Relay Coupler [Swarmer] Relay Coupler [Demolisher] > --- WEAPON ----------- Improved Potential Cannon Hypervelocity Multirail > --- INVENTORY -------- Compact Particle Reactor Compact Particle Reactor Matter Compressor Quantum Capacitor Advanced Phase Shifter Advanced Force Field Advanced Point Defense System Advanced Point Defense System Advanced Hacking Suite Relay Coupler [NC] Relay Coupler [Swarmer] Relay Coupler [Hunter] Relay Coupler [Heavy] Enhanced Nova Cannon Enhanced Nova Cannon Potential Cannon Hypervelocity Railgun Powered Hammer [Rating: 157] Favorites ----------- Power Improved Deuterium Engine Engine Improved Deuterium Engine Power Core Neutrino Core Reactor Compact Particle Reactor Propulsion Light Treads Treads Light Treads Leg Myomer Leg Utility High-capacity Storage Unit Device Advanced Heat Sink Storage High-capacity Storage Unit Processor Improved Targeting Computer Hackware Relay Coupler [Sentry] Protection Improved Light Armor Plating Weapon Heavy Particle Cannon Energy Gun Shock Rifle Energy Cannon Heavy Particle Cannon Ballistic Gun Hypervelocity Railgun Ballistic Cannon Light Antimatter Cannon Launcher Heavy Rocket Launcher Special Weapon Improved Remote Datajack Impact Weapon Heavy Mace Slashing Weapon Scythe Special Melee Weapon Improved Datajack Build | -11 -10 -10 -9 -9 -9 -8 -8 -8 -8 -8 -7 -7 -6 -6 -5 -5 -4 -4 -4 -3 -3 -3 ------- Run | Yrd Mat Min Mat Min Exi Min Mat Gar Mat Gar Fac Gar Fac Gar Fac Gar Fac Ext Cet Res Gar Tes Slots Evolved 14 | . . . 2 . . . 2 . . . 2 . 2 . 2 . 2 . . 2 . . Power 1 | . . . . . . . . . . . 1 . . . . . . . . . . . Propulsion 4 | . . . 1 . . . . . . . 1 . . . 1 . 1 . . . . . Utility 8 | . . . 1 . . . 2 . . . . . 1 . 1 . 1 . . 2 . . Weapon 1 | . . . . . . . . . . . . . 1 . . . . . . . . . Parts Attached 283 | 7 3 1 29 4 1 1 11 7 7 12 19 10 15 21 13 26 18 20 10 11 33 4 Power 31 | 1 1 . 4 1 . . 1 . . . 4 1 2 3 2 2 2 4 1 2 . . Engine 21 | 1 1 . 4 1 . . 1 . . . 4 1 2 3 2 1 . . . . . . Core 5 | . . . . . . . . . . . . . . . . 1 2 2 . . . . Reactor 5 | . . . . . . . . . . . . . . . . . . 2 1 2 . . Propulsion 84 | 2 . . 12 . 1 . 4 2 2 2 3 2 3 12 3 8 8 9 2 3 6 . Treads 34 | 2 . . 12 . 1 . 4 2 2 2 3 2 3 1 . . . . . . . . Leg 50 | . . . . . . . . . . . . . . 11 3 8 8 9 2 3 6 . Wheel . | . . . . . . . . . . . . . . . . . . . . . . . Hover . | . . . . . . . . . . . . . . . . . . . . . . . Flight . | . . . . . . . . . . . . . . . . . . . . . . . Utility 109 | 2 2 . 7 1 . . 3 2 5 6 8 7 9 4 6 11 6 6 4 4 15 1 Device 43 | 1 . . 2 . . . 1 2 4 3 3 . 2 1 1 4 3 3 1 1 11 . Storage 8 | 1 1 . 1 . . . . . . 1 2 . 1 . . . . . . . . 1 Processor 6 | . . . . . . . 1 . . . . . 1 . . . . 2 . 2 . . Hackware 29 | . . . 1 . . . . . 1 2 . 5 3 3 3 4 2 1 . 1 3 . Protection 23 | . 1 . 3 1 . . 1 . . . 3 2 2 . 2 3 1 . 3 . 1 . Artifact . | . . . . . . . . . . . . . . . . . . . . . . . Weapon 59 | 2 . 1 6 2 . 1 3 3 . 4 4 . 1 2 2 5 2 1 3 2 12 3 Energy Gun 6 | . . . 2 . . . . . . 1 . . . 1 . 2 . . . . . . Energy Cannon 23 | . . . 3 1 . . . 2 . . 1 . 1 . . 2 1 . 2 1 7 2 Ballistic Gun 7 | 2 . . . . . . . . . . . . . . . . . . . . 4 1 Ballistic Cannon 3 | . . . . . . . . . . . . . . 1 . . 1 1 . . . . Launcher 6 | . . 1 1 . . 1 2 . . 1 . . . . . . . . . . . . Special Weapon 4 | . . . . . . . . . . 1 . . . . 2 . . . . 1 . . Impact Weapon 4 | . . . . . . . 1 . . . . . . . . 1 . . 1 . 1 . Slashing Weapon 4 | . . . . . . . . . . 1 3 . . . . . . . . . . . Piercing Weapon . | . . . . . . . . . . . . . . . . . . . . . . . Special Melee Weapon 2 | . . . . 1 . . . 1 . . . . . . . . . . . . . . Unidentified Prototypes 10 | . . . 1 . . . . . . . . . . . . . 1 1 2 1 . 4 Parts Lost 105 | . 1 . 2 . . . 3 5 2 5 . 6 1 7 4 8 8 1 . 2 26 24 Power 14 | . 1 . . . . . . . 1 . . 1 1 2 2 2 1 . . . . 3 Propulsion 36 | . . . 1 . . . 1 1 . 1 . 4 . 3 2 4 3 1 . 1 11 3 Utility 36 | . . . . . . . 2 2 1 2 . . . 2 . . 3 . . 1 8 15 Weapon 19 | . . . 1 . . . . 2 . 2 . 1 . . . 2 1 . . . 7 3 Highest Loss Streak 24 | . 1 . 1 . . . 1 2 1 3 . 4 1 3 4 6 5 1 . 1 12 24 To Critical Strikes 1 | . . . . . . . . . . . . . . 1 . . . . . . . . Average Backups 17 | 3 5 10 16 19 19 19 18 18 18 18 18 17 18 17 18 18 17 16 19 19 17 17 Power 1 | . . 1 1 1 1 1 1 2 1 1 . . . 1 . . . 2 2 2 3 2 Propulsion 2 | 1 . 2 3 5 4 4 3 3 3 4 3 1 . 2 4 3 3 2 4 4 . . Utility 8 | . 1 4 6 7 7 7 5 7 8 8 9 10 11 9 9 10 11 7 10 9 9 10 Weapon 4 | . 1 2 4 4 5 6 6 4 4 3 4 5 5 4 3 3 2 4 3 3 3 4 Tool/Special . | . . . . . . . . . . . . . . . . . . . . . . . Unused Backups 44 | . 1 . 11 . . . 1 1 3 . 1 . 3 6 . 4 . 6 1 2 1 3 Power 5 | . . . 3 . . . . . . . . . . . . . . 1 . 1 . . Propulsion 5 | . . . 1 . . . . . 1 . . . . 2 . . . 1 . . . . Utility 21 | . 1 . 4 . . . 1 1 1 . 1 . 2 2 . 3 . . 1 . 1 3 Weapon 13 | . . . 3 . . . . . 1 . . . 1 2 . 1 . 4 . 1 . . Tool/Special . | . . . . . . . . . . . . . . . . . . . . . . . Average Slot Usage (%) 96 | . 100 100 99 100 100 100 98 100 99 97 99 99 91 91 98 96 89 92 94 94 93 86 Engine 9 | . 14 14 11 11 11 11 9 9 9 9 14 14 12 12 10 10 . . . . . . Reactor 1 | . . . . . . . . . . . . . . . . . . 3 9 9 9 8 Treads 18 | . 28 28 32 33 33 33 27 27 27 26 30 29 26 12 . . . . . . . . Leg 9 | . . . . . . . . . . . . . . 12 29 29 30 30 31 28 26 21 Device 13 | . 6 . 10 11 11 11 13 15 16 15 17 12 6 5 4 15 13 14 20 20 27 22 Storage 8 | . 14 14 11 11 11 11 9 9 9 16 7 7 6 6 5 5 5 5 5 4 4 7 Processor 2 | . . . . . . . 8 9 9 2 . . . . . . . 6 6 8 . . Hackware 5 | . . . 1 . . . . . 1 7 7 7 15 17 20 8 10 7 . 2 4 8 Protection 7 | . 7 14 9 11 11 11 12 11 9 2 4 9 8 10 7 6 4 . 3 4 4 3 Energy Cannon 10 | . . . 20 21 21 21 17 12 17 12 10 7 6 5 5 5 3 . 4 4 5 7 Ballistic Gun 2 | . 28 27 . . . . . . . . . . . . . . . . . . 7 1 Special Weapon 1 | . . . . . . . . . . 1 . 5 6 3 5 5 4 4 5 4 . . Impact Weapon 1 | . . . . . . . . 5 . . . . . . . 1 3 5 5 4 . . Peak Build Rating 157 | 7 8 8 22 22 22 22 33 38 36 35 45 44 50 74 77 95 118 123 133 147 154 157 Average Rating 56 | 4 7 8 19 20 20 21 29 34 35 33 42 42 45 55 72 83 107 112 130 143 143 147 On Entrance 53 | . 7 8 8 21 20 22 22 33 35 34 33 43 42 50 66 71 89 88 121 133 147 144 Avg Prop Armor Cover (%) 5 | . . . . . . . . . . . . . . 6 . . . 4 . . . . Naked Turns 4 | . . . . . . . . . . . . . . . . . . . . . . 4 Heaviest Build 139 | 12 29 29 67 71 71 71 74 72 74 71 80 84 80 85 91 101 101 90 109 112 139 138 Greatest Support 159 | 40 40 40 63 63 63 63 63 62 62 62 83 83 80 80 101 91 143 144 156 159 159 115 Greatest Overweight (x) 3 | 3 . . 1 1 1 1 1 1 1 1 . 1 . 2 1 1 . . . . 1 1 Average Overweight (x) . | 1 . . . . 1 1 1 . 1 . . . . . . . . . . . . . Largest Inventory Capacity 20 | 8 15 15 20 20 20 20 20 20 20 20 20 20 20 20 20 20 20 20 20 20 20 20 Average Capacity 19 | 7 11 15 17 20 20 20 20 20 20 20 20 20 20 20 20 20 20 20 20 20 20 19 Most Carried 20 | 4 10 10 20 20 20 20 20 20 20 20 20 20 20 20 20 20 20 20 20 20 20 20 Average Carried 18 | 3 5 10 16 19 19 20 19 19 19 19 19 18 19 18 19 19 17 17 19 19 18 19 Final Capacity 20 | 8 15 15 20 20 20 20 20 20 20 20 20 20 20 20 20 20 20 20 20 20 20 5 Final Carried 20 | 2 10 10 18 20 20 20 20 18 19 20 20 20 19 20 19 20 13 20 20 20 20 5 Class Distribution -------------------- 40% | Bothacker-Mutant 33% | Mutant 9% | Scavenger-Mutant 7% | Botlord-Mutant 5% | Scavenger-Tank Dominant Class ---------------- Mutant | -10/Materials Mutant | -10/Mines Mutant | -9/Materials Mutant | -9/Mines Mutant | -9/Exiles Mutant | -8/Mines Mutant | -8/Materials Mutant | -8/Garrison Bothacker-Mutant | -8/Materials Bothacker-Mutant | -8/Garrison Bothacker-Mutant | -7/Factory Bothacker-Mutant | -7/Garrison Bothacker-Mutant | -6/Factory Bothacker-Mutant | -6/Garrison Bothacker-Mutant | -5/Factory Bothacker-Mutant | -5/Garrison Botlord-Mutant | -4/Factory Bothacker-Mutant | -4/Extension Scavenger-Mutant | -4/Cetus Scavenger-Mutant | -3/Research Scavenger-Tank | -3/Garrison Scavenger-Tank | -3/Testing Resources | -11 -10 -10 -9 -9 -9 -8 -8 -8 -8 -8 -7 -7 -6 -6 -5 -5 -4 -4 -4 -3 -3 -3 ----------- Run | Yrd Mat Min Mat Min Exi Min Mat Gar Mat Gar Fac Gar Fac Gar Fac Gar Fac Ext Cet Res Gar Tes Matter Collected 8500 | 330 353 15 624 60 . 80 262 400 135 394 297 592 484 543 110 727 495 743 194 155 1434 73 Remotely . | . . . . . . . . . . . . . . . . . . . . . . . Salvage Created 13454 | 92 547 23 1993 239 . 30 984 790 566 488 601 463 98 1232 270 673 328 545 212 493 2115 672 Parts 591 | 8 47 3 123 19 . 5 38 42 22 23 27 25 7 34 13 16 6 9 7 12 69 36 Haulers Intercepted 10 | . 1 . 4 . . . . . 1 . 1 . . . . . 1 . . 2 . . Recyclers Shooed 5 | . 1 . 1 . . . 1 . . . . . . . . . . 2 . . . . Parts Field Recycled . | . . . . . . . . . . . . . . . . . . . . . . . Retrieved Matter . | . . . . . . . . . . . . . . . . . . . . . . . Parts Self-Destructed . | . . . . . . . . . . . . . . . . . . . . . . . Prevented . | . . . . . . . . . . . . . . . . . . . . . . . Parts Restored . | . . . . . . . . . . . . . . . . . . . . . . . Kills | -11 -10 -10 -9 -9 -9 -8 -8 -8 -8 -8 -7 -7 -6 -6 -5 -5 -4 -4 -4 -3 -3 -3 ------- Run | Yrd Mat Min Mat Min Exi Min Mat Gar Mat Gar Fac Gar Fac Gar Fac Gar Fac Ext Cet Res Gar Tes Combat Hostiles Destroyed 235 | . 13 3 35 6 . 3 19 25 8 14 7 17 2 19 4 10 4 4 4 2 26 10 Melee 6 | . . . . . . . 1 2 . 1 . . . . . . 1 . . . . 1 Guns 54 | . 13 1 1 . . . . . . . . . . 11 . 1 3 . . . 20 4 Cannons 113 | . . . 23 6 . 1 13 16 5 5 6 6 2 7 4 6 . 2 3 2 5 1 AOE 46 | . . 2 9 . . 2 4 6 . 8 . 10 . . . . . 1 . . . 4 Classes Destroyed 18 | 2 6 . 5 . . . 1 . . 1 . . 1 . . . 1 . . . 1 . Worker 14 | . 3 . 2 . . . . . 1 . 2 . . . 1 . 2 . . 3 . . Builder 6 | . . . 2 . . . 2 . 1 . . . . . 1 . . . . . . . Tunneler 3 | 2 . . 1 . . . . . . . . . . . . . . . . . . . Hauler 10 | . 1 . 4 . . . . . 1 . 1 . . . . . 1 . . 2 . . Recycler 8 | 1 . . 3 . . . . . . . 2 . . . . . . 2 . . . . Mechanic 4 | . . . 1 . . . . . . . . . . . . . 1 . . 1 . 1 Operator 7 | . 1 . 1 . . . 2 . . . 1 . . . . . 1 1 . . . . Watcher 15 | . 3 . 4 . . . 1 . 3 . 1 . 1 . 1 . . . . 1 . . Swarmer 42 | . 6 3 4 . . 3 . 11 . 4 . 5 . 1 1 . . . . . 4 . Saboteur 3 | . . . . . . . . . . . . . . . . . 1 . . . . 2 Grunt 118 | . 7 . 19 5 . . 15 8 4 6 1 9 . 13 1 7 3 2 . . 13 5 Brawler 10 | . . . 1 . . . . . 2 . . . . 2 . 2 . . . 1 1 1 Duelist 4 | . . . 1 1 . . . . . 1 . . . . . . . . . . 1 . Sentry 27 | . . . 10 . . . 3 5 1 1 2 2 . . . . . 1 . . 2 . Hunter 12 | . . . . . . . 1 1 1 . . . . 2 . 1 . . . 1 4 1 Programmer 13 | . . . . . . . . . . 2 4 1 1 1 2 . . 1 . . . 1 Heavy 1 | . . . . . . . . . . . . . 1 . . . . . . . . . Behemoth 1 | . . . . . . . . . . . . . . . . . . . . . 1 . Cetus Guard 4 | . . . . . . . . . . . . . . . . . . . 4 . . . Butcher 1 | . . . . . . . . . . 1 . . . . . . . . . . . . Best Kill Streak 10 | 1 5 3 8 3 . 3 9 7 4 8 2 8 1 4 3 2 3 2 2 2 4 10 Combat Bots Only 9 | . 4 3 6 3 . 3 6 7 3 8 1 8 1 4 3 2 2 2 2 1 4 9 Max Kills in Single Turn 6 | 1 2 1 6 1 . 2 4 2 2 4 1 3 1 1 1 1 1 1 1 1 2 5 Gunslinging 1 | . 1 . . . . . . . . . . . . . . . . . . . . . Exploded 5 | . . 1 5 . . 2 2 2 . 4 . 3 . . . . . 1 . . . 4 Melee 1 | . . . . . . . 1 1 . 1 . . . . . . 1 . . . . 1 Uniques/NPCs Destroyed . | . . . . . . . . . . . . . . . . . . . . . . . Combat | -11 -10 -10 -9 -9 -9 -8 -8 -8 -8 -8 -7 -7 -6 -6 -5 -5 -4 -4 -4 -3 -3 -3 -------- Run | Yrd Mat Min Mat Min Exi Min Mat Gar Mat Gar Fac Gar Fac Gar Fac Gar Fac Ext Cet Res Gar Tes Hostile Shots Fired 1719 | . 75 7 102 10 . 7 82 115 40 65 72 124 70 99 54 74 164 28 3 37 364 127 Missed 555 | . 22 1 27 1 . 2 18 38 14 16 23 52 29 26 14 22 68 14 . 12 118 38 Hits 1164 | . 53 6 75 9 . 5 64 77 26 49 49 72 41 73 40 52 96 14 3 25 246 89 Melee 48 | . . . 2 2 . . . . . . . . . . . . 1 2 . . 14 27 Projectile 1116 | . 53 6 73 7 . 5 64 77 26 49 49 72 41 73 40 52 95 12 3 25 232 62 Critical Strikes 53 | . . . 1 . . . 1 3 . 4 . 2 1 2 2 1 3 3 . . 20 10 Actively Blocked 24 | . . . . . . . . . . . . . . . . . 1 3 . . 20 . Damage Taken 19888 | . 567 53 981 150 . 34 1043 1003 341 770 454 1036 502 1382 752 1008 1736 348 159 706 4608 2255 Core 2609 | . 88 . 155 42 . 12 78 47 66 91 39 126 42 298 17 55 130 21 . 50 282 970 Absorbed by Shields 1871 | . . . . . . . 182 85 58 . . . . 75 . 102 48 82 74 . 917 248 Regen/Repaired (Parts) 349 | . 104 . 162 . . . . . . . . . . . . . 14 69 . . . . Core Remaining (%) 71 | 100 . 64 . . . 47 . . . 48 . 76 . 60 . 92 . . 86 . . . Volleys Fired 979 | 17 72 3 80 10 . 2 60 58 27 33 36 77 35 65 37 106 27 48 26 40 100 20 Largest 3 | 2 2 2 2 2 . 2 2 2 2 2 2 2 1 2 1 2 1 1 1 1 3 1 Hottest 360 | 40 40 40 150 150 . 150 150 160 160 160 155 155 85 129 85 150 110 56 105 113 360 200 Shots Fired 1579 | 34 144 4 155 20 . 3 118 102 56 51 57 89 35 150 38 109 50 48 28 40 227 21 Gun 481 | 34 144 2 16 . . . . . . . . 6 . 78 . 3 23 . . . 165 10 Cannon 913 | . . . 135 20 . 2 112 97 56 45 57 48 17 58 21 73 13 26 27 35 60 11 Launcher 38 | . . 2 4 . . 1 6 5 . 3 . 13 . . . . 3 1 . . . . Special 147 | . . . . . . . . . . 3 . 22 18 14 17 33 11 21 1 5 2 . Kinetic 405 | 34 144 2 13 . . . . . . . . . . 6 . . 5 26 . . 165 10 Thermal 966 | . . . 138 20 . 2 112 97 56 45 57 48 17 130 21 67 23 . 27 35 60 11 Explosive 36 | . . 2 4 . . 1 4 5 . 3 . 13 . . . . 3 1 . . . . Electromagnetic 25 | . . . . . . . 2 . . . . 6 . . . 9 8 . . . . . Robot Hit Streak 24 | 7 7 3 12 10 . 11 11 18 15 11 11 11 9 24 13 12 11 9 9 9 14 8 Robot Miss Streak 5 | 2 5 . 3 3 . . 5 3 4 2 2 3 3 3 1 3 3 3 2 2 4 2 Penetration Max 3 | . . . . . . . . . . . . . . . . . . 1 . . 3 3 Secondary Targets 6 | . 2 . . . . . . . . . . . . . . . . . . . 4 . Max Gunslinging Chain 1 | . 1 . . . . . . . . . . . . . . . . . . . 1 . Capacitor 167 | . . . . . . . . . . . . . . . . 50 31 . 27 35 24 . Autonomous 102 | . . . . . . . . . . . . . . 78 . . 24 . . . . . Shots Hit Robots 1038 | 23 83 1 94 13 . 1 62 70 36 34 29 57 21 127 34 74 39 37 20 35 136 12 Core Hits 471 | 5 39 3 61 8 . 3 35 32 15 20 15 34 3 42 9 17 18 10 9 5 57 31 Critical Kills 38 | 1 . . 2 . . . 1 . 3 . 1 . . . . . . 3 1 . 21 5 Critical Parts Destroyed 51 | . . . . . . . . . . . . . . . . 1 1 5 . 4 29 11 Critical Strikes 101 | 1 . . 2 . . . 1 . 3 . 2 . . 1 . 1 1 9 1 4 59 16 Meltdown 8 | . . . 1 . . . 1 . 3 . 1 . . . . . . . 1 . 1 . Destroy 83 | 1 . . 1 . . . . . . . . . . . . . . 7 . . 58 16 Blast 1 | . . . . . . . . . . . . . . . . . . 1 . . . . Smash 7 | . . . . . . . . . . . . . . . . 1 1 1 . 4 . . Sever 2 | . . . . . . . . . . . 1 . . 1 . . . . . . . . Melee Attacks 160 | . . . . 1 . . 4 36 2 8 15 . . 29 15 14 14 6 . 10 6 . Impact 78 | . . . . . . . 4 30 . . . . . . . 8 14 6 . 10 6 . Slashing 70 | . . . . . . . . . . 5 15 . . 29 15 6 . . . . . . Piercing . | . . . . . . . . . . . . . . . . . . . . . . . Sneak Attacks 27 | . . . . 1 . . 1 6 . 2 1 . . . 3 . 2 5 . 6 . . Combat Hostiles . | . . . . . . . . . . . . . . . . . . . . . . . Follow-up Attacks . | . . . . . . . . . . . . . . . . . . . . . . . Damage Inflicted 31377 | 239 943 117 3418 300 . 84 2219 2320 985 1451 909 2687 308 4134 812 1572 1637 879 877 1687 2488 1311 Guns 5248 | 237 926 12 105 . . . . . . . . 98 . 2070 . 28 517 . . . 992 263 Cannons 16663 | . . . 2275 300 . 25 1475 1701 968 694 778 737 308 1137 593 1452 268 411 877 1069 1414 181 Explosions 6541 | . . 105 984 . . 59 614 614 . 725 . 1852 . . . . 715 38 . . . 835 Melee 2703 | . . . . . . . 97 . . 31 91 . . 927 219 92 137 430 . 618 61 . Ramming 222 | 2 17 . 54 . . . 33 5 17 1 40 . . . . . . . . . 21 32 Kinetic 3210 | 237 926 12 90 . . . . . . . . . . 186 . . 93 411 . . 992 263 Thermal 19465 | . . . 2613 300 . 25 1475 1701 968 694 778 737 308 3021 593 1359 517 . 877 1069 1414 1016 Explosive 5285 | . . 105 661 . . 59 516 614 . 725 . 1852 . . . . 715 38 . . . . Electromagnetic 492 | . . . . . . . 98 . . . . 98 . . . 121 175 . . . . . Impact 1435 | . . . . . . . 97 . . . . . . . . 92 137 430 . 618 61 . Slashing 1268 | . . . . . . . . . . 31 91 . . 927 219 . . . . . . . Piercing . | . . . . . . . . . . . . . . . . . . . . . . . Highest Corruption 8 | . 2 2 . . . . 5 5 6 1 2 2 1 2 2 2 4 4 4 . 7 8 Average Corruption 3 | . 2 2 . . . . 5 5 5 1 1 2 1 1 1 1 3 4 4 . 6 7 Corruption Purged 8 | . . . . . . . . . 6 . . . . . . 2 . . . . . . Corruption Blocked 1 | . . . . . . . . . . . . . . . . . . 1 . . . . Effects 270 | . 8 4 . . . . 20 48 30 4 6 20 4 21 9 1 . 21 11 . 50 13 Message Errors 62 | . 3 2 . . . . 1 16 7 . 1 5 1 5 4 . . 5 . . 10 2 Matter Fused 66 | . 1 1 . . . . 8 11 8 . 2 6 . 5 1 . . 7 6 . 7 3 Heat Flow Errors 27 | . 1 1 . . . . 3 2 1 1 1 2 1 2 1 . . 2 . . 7 2 Energy Discharges 25 | . 2 . . . . . 2 5 4 2 . 3 . 3 . . . 2 . . 1 1 Parts Rejected 2 | . . . . . . . . 1 . . . . . . . . . . . . 1 . Parts Fused 1 | . . . . . . . . . . . . . . 1 . . . . . . . . Data Loss (minor) 42 | . 1 . . . . . 2 6 5 . 2 2 . 3 2 . . 4 3 . 8 4 Data Loss (major) 18 | . . . . . . . . 3 3 1 . 1 1 1 . 1 . 1 . . 6 . Misfires 12 | . . . . . . . 1 2 2 . . . . 1 1 . . . 2 . 2 1 Alerts 3 | . . . . . . . . 1 . . . . 1 . . . . . . . 1 . Weapon Failures 12 | . . . . . . . 3 1 . . . 1 . . . . . . . . 7 . Overload Shots . | . . . . . . . . . . . . . . . . . . . . . . . Overflow Damage 1762 | . . . 193 . . . 80 106 24 30 . 19 . 72 48 54 120 252 . 558 . 206 Projectiles 335 | . . . 46 . . . 23 45 24 26 . 8 . 24 26 19 . 9 . 4 . 81 Explosions 371 | . . . 147 . . . 16 61 . 4 . 11 . . . . 7 . . . . 125 Melee 1056 | . . . . . . . 41 . . . . . . 48 22 35 113 243 . 554 . . Knockbacks 19 | . 1 . . . . . . . . . 2 . . 2 . 1 3 9 . . 1 . Impact 10 | . 1 . . . . . . . . . 2 . . . . 1 1 4 . . 1 . Kinetic 9 | . . . . . . . . . . . . . . 2 . . 2 5 . . . . Secondary . | . . . . . . . . . . . . . . . . . . . . . . . Self-Inflicted Damage 251 | . . . . . . . . 55 . 9 . 57 . . . . 15 . . . . 115 Shots 9 | . . . . . . . . 3 . 1 . 3 . . . . 1 . . . . 1 Rammed 29 | 1 4 . 8 . . . 4 . 3 1 4 . . . . . . . . . . 4 Targets Rammed 41 | 1 5 . 10 . . . 5 2 3 1 6 . . . . . . . . . 2 6 Kicked 4 | . . . . . . . . . . . . . . . . . . . . . 2 2 Crushed 8 | . 1 . 2 . . . 1 2 . . 2 . . . . . . . . . . . Highest Temperature 323 | . 85 244 186 144 . 36 279 223 218 240 198 137 129 283 125 288 239 315 280 323 257 82 Average Temperature 73 | . 10 112 57 69 . 18 86 72 60 94 34 32 53 96 63 86 106 124 147 122 115 44 Received Heat Transfer 4289 | . 213 . 417 51 . . 421 354 96 342 117 402 136 321 63 312 164 4 6 57 574 239 Effects 5 | . . . . . . . 2 2 1 . . . . . . . . . . . . . Interference 5 | . . . . . . . 2 2 1 . . . . . . . . . . . . . Siege Activations . | . . . . . . . . . . . . . . . . . . . . . . . Martial Activations . | . . . . . . . . . . . . . . . . . . . . . . . Shielding Activations . | . . . . . . . . . . . . . . . . . . . . . . . Robots Disrupted 1 | . . . . . . . . . . . . . . . . 1 . . . . . . Combat Hostiles 1 | . . . . . . . . . . . . . . . . 1 . . . . . . Robots Corrupted 9 | . . . . . . . 1 . . . . . . . . 1 2 3 . 2 . . Combat Hostiles 2 | . . . . . . . . . . . . . . . . 1 . 1 . . . . Parts Fried 17 | . . . . . . . 2 . . . . 1 . . . 1 3 4 . 6 . . Impact Corruptions 23 | . . . . . . . 2 . . . . . . . . 1 5 6 . 9 . . Robots Melted 14 | . . . 2 . . . 1 1 3 . 1 1 . 1 . 2 . . 1 . 1 . Combat Hostiles 14 | . . . 2 . . . 1 1 3 . 1 1 . 1 . 2 . . 1 . 1 . Parts Melted 52 | . . . 5 1 . . 4 2 7 6 7 2 1 5 . 2 . . 2 1 7 . Heat Transferred 24909 | . . . 3604 444 . 37 2183 2743 1850 1172 1216 1247 511 3568 629 1443 620 . 702 925 1165 850 Parts Sabotaged 4 | . . . . . . . . . . . . . . . . . 2 . . . . 2 Parts Stolen . | . . . . . . . . . . . . . . . . . . . . . . . Parts Stripped . | . . . . . . . . . . . . . . . . . . . . . . . Power Chain Reactions 1 | . . . . . . . 1 . . . . . . . . . . . . . . . Alert | -11 -10 -10 -9 -9 -9 -8 -8 -8 -8 -8 -7 -7 -6 -6 -5 -5 -4 -4 -4 -3 -3 -3 ------- Run | Yrd Mat Min Mat Min Exi Min Mat Gar Mat Gar Fac Gar Fac Gar Fac Gar Fac Ext Cet Res Gar Tes Maximum Alert Level 5 | . . . 2 . . . 1 4 2 2 1 4 2 3 2 3 2 2 2 3 4 5 Low Security (%) 45 | 100 100 100 57 100 . 100 86 24 6 52 92 24 7 11 74 26 24 56 . . . . Level 1 17 | . . . 36 . . . 13 3 49 2 7 10 . 51 16 13 50 6 47 22 . . Level 2 20 | . . . 5 . . . . 10 43 44 . 28 91 31 9 30 25 36 52 19 24 . Level 3 11 | . . . . . . . . 49 . . . 26 . 5 . 28 . . . 57 40 . Level 4 3 | . . . . . . . . 11 . . . 9 . . . . . . . . 34 . Level 5 . | . . . . . . . . . . . . . . . . . . . . . . . High Security . | . . . . . . . . . . . . . . . . . . . . . . . Max Security 1 | . . . . . . . . . . . . . . . . . . . . . . 99 Peak Influence 1878 | 5 142 69 412 188 . 69 324 1278 622 544 275 1199 646 822 431 890 466 644 438 844 1376 1878 Initial 774 | . . 12 14 147 . . . . 622 62 275 70 629 62 431 49 466 123 352 240 514 774 Average 361 | . 54 16 197 62 . 25 69 703 385 296 77 584 487 382 199 446 289 242 390 612 960 1636 Influence Increases 13812 | 15 422 79 1186 161 . 79 736 1378 304 552 348 1229 307 910 250 1141 748 1245 306 956 1122 338 Destroy 0b10 Robot/C 6500 | . 260 60 700 120 . 60 380 580 160 340 140 620 160 440 140 500 280 440 140 260 520 200 Destroy 0b10 Robot/NC 415 | 15 40 . 90 . . . 25 . 30 . 35 . 10 10 15 . 40 35 10 50 5 5 Destroy Leader 1052 | . 58 10 216 20 . 10 82 30 48 20 64 30 62 40 32 50 52 76 . 72 50 30 Allied During Kill 1226 | . . . . . . . . 9 . 23 . 78 55 4 7 91 68 445 109 337 . . Successful Hack 303 | . 34 . 57 . . . 18 12 5 21 50 21 . . . . 54 31 . . . . Select Force Hacks 50 | . . . . . . . . . . . . . . . . . 50 . . . . . Disable Machine 450 | . . . 45 15 . . 60 15 30 . 30 15 . 30 15 30 90 15 15 . . 45 Anti-Garrison Action 2000 | . . . . . . . . 500 . 100 . 300 . 350 . 400 . . . 150 200 . Destroy Structure 1036 | . . 9 63 6 . 9 66 157 16 18 14 105 5 21 26 55 84 158 32 72 62 58 Lose Combat Pursuer 780 | . 30 . 15 . . . 105 75 15 30 15 60 15 15 15 15 30 45 . 15 285 . Influence Decreases 12940 | 15 390 72 847 539 . 79 736 100 1486 124 771 131 1417 177 1001 322 1385 868 536 670 432 842 Entered New Map 4022 | . . 20 25 231 . . . . 656 34 249 31 570 27 391 22 424 130 278 160 172 602 Time Decay 5208 | 15 390 52 652 308 . 79 406 . 490 . 512 . 422 . 380 . 416 478 198 410 . . Lost Part 1030 | . . . 10 . . . 30 50 20 50 . 60 10 70 40 80 80 10 . 20 260 240 Lost Ally 980 | . . . 10 . . . . 50 20 40 10 40 140 80 40 220 90 100 60 80 . . Purge Threat 1700 | . . . 150 . . . 300 . 300 . . . 275 . 150 . 375 150 . . . . Squads Dispatched 62 | . 3 . 6 . . . 2 . 1 . 3 . 4 . 3 . 11 2 . 7 . 20 Investigation 7 | . 1 . 1 . . . . . . . . . . . . . 1 1 . 3 . . Extermination 9 | . . . . . . . . . . . 3 . 2 . 1 . 3 . . . . . Reinforcement 20 | . 2 . 5 . . . 2 . . . . . 2 . 1 . 3 1 . 4 . . Assault 23 | . . . . . . . . . . . . . . . . . 3 . . . . 20 Garrison 3 | . . . . . . . . . 1 . . . . . 1 . 1 . . . . . Intercept . | . . . . . . . . . . . . . . . . . . . . . . . Searches Triggered . | . . . . . . . . . . . . . . . . . . . . . . . Construction Impeded 2 | . . . 1 . . . 1 . . . . . . . . . . . . . . . Haulers Reinforced 1 | . . . . . . . . . . . . . . . . . . . . 1 . . Active Scanning Responses . | . . . . . . . . . . . . . . . . . . . . . . . Cargo Convoy Interrupts . | . . . . . . . . . . . . . . . . . . . . . . . Stealth | -11 -10 -10 -9 -9 -9 -8 -8 -8 -8 -8 -7 -7 -6 -6 -5 -5 -4 -4 -4 -3 -3 -3 --------- Run | Yrd Mat Min Mat Min Exi Min Mat Gar Mat Gar Fac Gar Fac Gar Fac Gar Fac Ext Cet Res Gar Tes Distress Signals 26 | . 2 1 3 . . . 7 . 1 . 1 . 2 . 2 . . . 2 5 . . Communications Jammed 16 | . . . . . . . . . . . . . 1 . . . 15 . . . . . Distress Signals 16 | . . . . . . . . . . . . . 1 . . . 15 . . . . . Times Spotted 518 | . 25 3 49 6 . 3 38 35 19 20 12 32 23 29 14 36 31 26 10 30 41 36 Peak Tracking Total 15 | . 6 3 5 3 . 3 6 8 3 5 3 8 4 5 5 7 8 5 5 8 7 15 Tactical Retreats 40 | . 2 . 1 . . . 4 2 1 1 1 4 1 1 1 1 2 3 . 1 14 . Traps | -11 -10 -10 -9 -9 -9 -8 -8 -8 -8 -8 -7 -7 -6 -6 -5 -5 -4 -4 -4 -3 -3 -3 ------- Run | Yrd Mat Min Mat Min Exi Min Mat Gar Mat Gar Fac Gar Fac Gar Fac Gar Fac Ext Cet Res Gar Tes Traps Triggered 40 | . 2 . 2 . . . . 6 1 4 1 1 . 4 . 10 . 1 . . 8 . Indirectly . | . . . . . . . . . . . . . . . . . . . . . . . Trap Hack Attempts . | . . . . . . . . . . . . . . . . . . . . . . . Triggered . | . . . . . . . . . . . . . . . . . . . . . . . Disarmed . | . . . . . . . . . . . . . . . . . . . . . . . Reprogrammed . | . . . . . . . . . . . . . . . . . . . . . . . Reused . | . . . . . . . . . . . . . . . . . . . . . . . Traps Extracted . | . . . . . . . . . . . . . . . . . . . . . . . Installed . | . . . . . . . . . . . . . . . . . . . . . . . Triggered . | . . . . . . . . . . . . . . . . . . . . . . . Machines | -11 -10 -10 -9 -9 -9 -8 -8 -8 -8 -8 -7 -7 -6 -6 -5 -5 -4 -4 -4 -3 -3 -3 ---------- Run | Yrd Mat Min Mat Min Exi Min Mat Gar Mat Gar Fac Gar Fac Gar Fac Gar Fac Ext Cet Res Gar Tes Machines Disabled 57 | . . . 3 1 . . 4 6 2 3 2 5 . 5 1 6 6 3 1 1 2 6 Max in Single Turn 2 | . . . 1 1 . . 1 1 1 1 1 1 . 1 . 1 2 1 1 . 1 2 Garrison Access 4 | . . . . . . . . . . . 1 . 1 . . . 1 . . 1 . . Garrison Relay 20 | . . . . . . . . 5 . 2 . 4 . 3 . 4 . . . . 2 . Machines Repaired . | . . . . . . . . . . . . . . . . . . . . . . . Machines Dismantled . | . . . . . . . . . . . . . . . . . . . . . . . Machines Sabotaged . | . . . . . . . . . . . . . . . . . . . . . . . Overloaded Fab Kills . | . . . . . . . . . . . . . . . . . . . . . . . Hacking | -11 -10 -10 -9 -9 -9 -8 -8 -8 -8 -8 -7 -7 -6 -6 -5 -5 -4 -4 -4 -3 -3 -3 --------- Run | Yrd Mat Min Mat Min Exi Min Mat Gar Mat Gar Fac Gar Fac Gar Fac Gar Fac Ext Cet Res Gar Tes Machines Accessed 81 | . 9 . 11 1 1 . 10 3 6 2 9 2 2 1 2 1 8 9 1 1 2 . Terminals 57 | . 7 . 7 1 . . 9 3 5 2 4 2 . 1 1 1 3 8 1 . 2 . Fabricators 3 | . . . . . . . . . . . 1 . . . . . 2 . . . . . Repair Stations 6 | . 1 . 2 . . . . . . . . . . . . . 2 1 . . . . Recycling Units 2 | . 1 . . . . . . . . . 1 . . . . . . . . . . . Scanalyzers 4 | . . . 2 . . . . . . . 1 . . . . . 1 . . . . . Garrison Access 8 | . . . . . . . 1 . 1 . 2 . 2 . 1 . . . . 1 . . Total Hacks 191 | . 26 . 31 1 1 . 27 5 22 6 19 5 2 2 2 1 15 20 2 1 3 . Successful 97 | . 17 . 21 . 1 . 16 1 8 2 11 2 2 . 1 1 6 7 . 1 . . Failed 93 | . 9 . 10 1 . . 10 4 14 4 8 3 . 2 1 . 9 13 2 . 3 . Catastrophic 21 | . 1 . 2 1 . . 1 1 1 . 3 . . 1 1 . 2 5 1 . 1 . Database Lockouts 1 | . . . . . . . 1 . . . . . . . . . . . . . . . Manual 85 | . 18 . 13 1 1 . 21 1 13 . 8 . . . . . 3 5 1 . . . Terminals 146 | . 22 . 17 1 . . 26 5 21 6 13 5 . 2 1 1 5 16 2 . 3 . Fabricators 4 | . . . . . . . . . . . 1 . . . . . 3 . . . . . Repair Stations 14 | . 2 . 5 . . . . . . . . . . . . . 3 4 . . . . Recycling Units 3 | . 2 . . . . . . . . . 1 . . . . . . . . . . . Scanalyzers 15 | . . . 9 . . . . . . . 2 . . . . . 4 . . . . . Garrison Access 8 | . . . . . . . 1 . 1 . 2 . 2 . 1 . . . . 1 . . Terminal Hacks 30 | . 3 . 3 . 1 . 6 1 4 2 2 2 . . . 1 2 3 . . . . Robot Analysis 1 | . . . . . . . 1 . . . . . . . . . . . . . . . Prototype ID Bank 2 | . . . . . . . . . 1 . . . . . . . 1 . . . . . Open Door 4 | . . . . . . . . . . 1 . 1 . . . . . 2 . . . . Branch Access Points 2 | . . . . . . . . . . . 1 . . . . . 1 . . . . . Emergency Access Points 4 | . . . . . . . . 1 . 1 . 1 . . . 1 . . . . . . Terminal Index 1 | . 1 . . . . . . . . . . . . . . . . . . . . . Garrison Index 1 | . . . . . . . . . . . 1 . . . . . . . . . . . Alert Level 5 | . . . 2 . . . 2 . 1 . . . . . . . . . . . . . Unreport Threat 6 | . . . 1 . . . 2 . 2 . . . . . . . . 1 . . . . Locate Traps 2 | . 2 . . . . . . . . . . . . . . . . . . . . . Recall Reinforcements 1 | . . . . . . . 1 . . . . . . . . . . . . . . . Proto ID Catalog 1 | . . . . . 1 . . . . . . . . . . . . . . . . . Fabricator Hacks . | . . . . . . . . . . . . . . . . . . . . . . . Repair Station Hacks 9 | . . . 4 . . . . . . . . . . . . . 2 3 . . . . Scan Component 5 | . . . 2 . . . . . . . . . . . . . 1 2 . . . . Repair 4 | . . . 2 . . . . . . . . . . . . . 1 1 . . . . Recycling Unit Hacks 2 | . 1 . . . . . . . . . 1 . . . . . . . . . . . Retrieve Components 2 | . 1 . . . . . . . . . 1 . . . . . . . . . . . Scanalyzer 10 | . . . 9 . . . . . . . 1 . . . . . . . . . . . Insert Component 1 | . . . 1 . . . . . . . . . . . . . . . . . . . Retrieve Study 9 | . . . 8 . . . . . . . 1 . . . . . . . . . . . Garrison Access Hacks 8 | . . . . . . . 1 . 1 . 2 . 2 . 1 . . . . 1 . . Unlock Access 6 | . . . . . . . 1 . 1 . 1 . 1 . 1 . . . . 1 . . Seal Access 2 | . . . . . . . . . . . 1 . 1 . . . . . . . . . Unauthorized Hacks 38 | . 13 . 5 . . . 9 . 3 . 5 . . . . . 2 1 . . . . Terminals 36 | . 12 . 5 . . . 9 . 3 . 5 . . . . . 1 1 . . . . Track 1 | . . . . . . . . . . . . . . . . . . 1 . . . . Assimilate 6 | . 2 . 1 . . . 1 . . . 2 . . . . . . . . . . . Botnet 12 | . 3 . 2 . . . 2 . 2 . 2 . . . . . 1 . . . . . Skim 17 | . 7 . 2 . . . 6 . 1 . 1 . . . . . . . . . . . Fabricators 1 | . . . . . . . . . . . . . . . . . 1 . . . . . Overload 1 | . . . . . . . . . . . . . . . . . 1 . . . . . Repair Stations 1 | . 1 . . . . . . . . . . . . . . . . . . . . . Patch 1 | . 1 . . . . . . . . . . . . . . . . . . . . . Recycling Units . | . . . . . . . . . . . . . . . . . . . . . . . Scanalyzers . | . . . . . . . . . . . . . . . . . . . . . . . Garrison Access . | . . . . . . . . . . . . . . . . . . . . . . . Data Cores Recovered 1 | . . . . . . . . . . . 1 . . . . . . . . . . . Used . | . . . . . . . . . . . . . . . . . . . . . . . Hacking Detections 67 | . 9 . 8 1 . . 8 3 5 2 7 2 1 1 2 . 6 8 1 1 2 . Full Trace Events 2 | . . . . . . . . 1 . . . . . . . . . 1 . . . . Feedback Events . | . . . . . . . . . . . . . . . . . . . . . . . Feedback Blocked . | . . . . . . . . . . . . . . . . . . . . . . . Robot Schematics Acquired . | . . . . . . . . . . . . . . . . . . . . . . . Robots Built . | . . . . . . . . . . . . . . . . . . . . . . . Authchips . | . . . . . . . . . . . . . . . . . . . . . . . Time . | . . . . . . . . . . . . . . . . . . . . . . . Total Robot Build Rating . | . . . . . . . . . . . . . . . . . . . . . . . Part Schematics Acquired . | . . . . . . . . . . . . . . . . . . . . . . . Parts Built . | . . . . . . . . . . . . . . . . . . . . . . . Authchips . | . . . . . . . . . . . . . . . . . . . . . . . Time . | . . . . . . . . . . . . . . . . . . . . . . . Total Part Build Rating . | . . . . . . . . . . . . . . . . . . . . . . . Part Studies Acquired 9 | . . . 8 . . . . . . . 1 . . . . . . . . . . . Parts Repaired 4 | . . . 2 . . . . . . . . . . . . . 1 1 . . . . Time 212 | . . . 76 . . . . . . . . . . . . . 50 86 . . . . Parts Recycled . | . . . . . . . . . . . . . . . . . . . . . . . Recycled Matter . | . . . . . . . . . . . . . . . . . . . . . . . Retrieved Matter . | . . . . . . . . . . . . . . . . . . . . . . . Retrieved Components 17 | . 10 . . . . . . . . . 7 . . . . . . . . . . . Parts Scanalyzed . | . . . . . . . . . . . . . . . . . . . . . . . Part Schematics Acquired . | . . . . . . . . . . . . . . . . . . . . . . . Parts Damaged . | . . . . . . . . . . . . . . . . . . . . . . . Bothacking | -11 -10 -10 -9 -9 -9 -8 -8 -8 -8 -8 -7 -7 -6 -6 -5 -5 -4 -4 -4 -3 -3 -3 ------------ Run | Yrd Mat Min Mat Min Exi Min Mat Gar Mat Gar Fac Gar Fac Gar Fac Gar Fac Ext Cet Res Gar Tes Used RIF Installer 6 | . . . . . . . . 1 . 2 . 1 . 1 . 1 . . . . . . Coupler Efficiency 1 | . . . . . . . . . . . . . . 1 . . . . . . . . Signal Jammer 1 | . . . . . . . . . . 1 . . . . . . . . . . . . Zone Cloak 1 | . . . . . . . . . . 1 . . . . . . . . . . . . Patrol Navigation 1 | . . . . . . . . . . . . 1 . . . . . . . . . . Program Shield 1 | . . . . . . . . . . . . . . . . 1 . . . . . . Robots Hacked 59 | . . . . 1 . . . . 2 4 . 7 7 6 9 10 5 3 . 4 1 . Non-combat 8 | . . . . . . . . . . . . . 2 . 4 . 2 . . . . . Combat 51 | . . . . 1 . . . . 2 4 . 7 5 6 5 10 3 3 . 4 1 . Robot Hacks Applied 66 | . . . . 1 . . . . 2 4 . 7 9 6 10 11 8 3 . 4 1 . parse_system 9 | . . . . 1 . . . . . 1 . 1 . 1 . 1 . 1 . 3 . . drop_inventory 2 | . . . . . . . . . . . . . . . 2 . . . . . . . purge_threat 6 | . . . . . . . . . . . . . 2 . 1 . 3 . . . . . find_terminals 1 | . . . . . . . . . . . . . . . . . 1 . . . . . map_route 2 | . . . . . . . . . . . . . 1 . 1 . . . . . . . scatter_targeting 2 | . . . . . . . . . . . . 1 1 . . . . . . . . . amplify_resonance 10 | . . . . . . . . . . . . 1 3 1 1 2 . . . 1 1 . disable_weapons 2 | . . . . . . . . . . 1 . 1 . . . . . . . . . . reboot_system 2 | . . . . . . . . . . . . 1 1 . . . . . . . . . overwrite_iff 1 | . . . . . . . . . . . . . . . 1 . . . . . . . streamctrl_high 1 | . . . . . . . . . 1 . . . . . . . . . . . . . formatsys_low 1 | . . . . . . . . . . . . . . . . . 1 . . . . . formatsys_high 27 | . . . . . . . . . 1 2 . 2 1 4 4 8 3 2 . . . . Relay Couplers Released 86 | . . . . . . . . 21 . 7 . 17 . 12 . 16 3 . . 3 7 . Machine Destruction 83 | . . . . . . . . 21 . 7 . 14 . 12 . 16 3 . . 3 7 . Programmers 3 | . . . . . . . . . . . . 3 . . . . . . . . . . Attached 27 | . . . . . . . . . 1 2 . 4 3 3 3 4 2 1 . 1 3 . Fabnet Peak Effective % . | . . . . . . . . . . . . . . . . . . . . . . . Robots Rewired 16 | . . . . . . . . 2 . . . 3 . . . 2 . 7 1 1 . . Allies Hacked 4 | . . . . . . . . . . . . . . . 1 3 . . . . . . Hacks Repelled . | . . . . . . . . . . . . . . . . . . . . . . . Allies | -11 -10 -10 -9 -9 -9 -8 -8 -8 -8 -8 -7 -7 -6 -6 -5 -5 -4 -4 -4 -3 -3 -3 -------- Run | Yrd Mat Min Mat Min Exi Min Mat Gar Mat Gar Fac Gar Fac Gar Fac Gar Fac Ext Cet Res Gar Tes Total Allies 64 | . . . 1 . . . 1 2 2 3 2 9 1 4 4 12 4 12 6 1 . . Largest Group 10 | . . . 1 . . . 1 2 2 2 1 7 7 2 3 4 4 10 8 7 . . Highest-Rated Group 757 | . . . 10 . . . 10 51 32 40 26 307 307 61 141 190 220 612 757 661 . . Highest-Rated Ally 159 | . . . 10 . . . 10 31 16 25 26 80 80 32 49 80 80 159 159 153 . . Total Orders . | . . . . . . . . . . . . . . . . . . . . . . . Ally Attacks 493 | . . . . . . . . 12 4 17 . 32 37 15 10 86 43 103 43 91 . . Total Damage 16188 | . . . . . . . . 285 59 344 . 1194 1536 447 224 2036 1916 3547 1438 3162 . . Kills 106 | . . . . . . . . 4 . 3 . 14 7 3 3 15 14 23 6 14 . . Allies Corrupted 4 | . . . . . . . . . . . . . 1 . 1 1 1 . . . . . Allies Melted 1 | . . . . . . . . . . . . . . . . 1 . . . . . . Intel | -11 -10 -10 -9 -9 -9 -8 -8 -8 -8 -8 -7 -7 -6 -6 -5 -5 -4 -4 -4 -3 -3 -3 ------- Run | Yrd Mat Min Mat Min Exi Min Mat Gar Mat Gar Fac Gar Fac Gar Fac Gar Fac Ext Cet Res Gar Tes Active Infowar (turns) 3437 | 29 620 . 60 . . . . . . 247 719 . 1 . . . 3 568 405 785 . . Optics 1758 | . . . . . . . . . . . . . . . . . . 568 405 785 . . IFF 2 | . . . . . . . . . . . . . . . . . 2 . . . . . Traps 967 | . . . . . . . . . . 247 719 . 1 . . . . . . . . . Seismic 709 | 29 620 . 60 . . . . . . . . . . . . . . . . . . . Jamming 1 | . . . . . . . . . . . . . . . . . 1 . . . . . Robot Analysis Total 1 | . . . . . . . 1 . . . . . . . . . . . . . . . Derelict Logs Recovered 3 | . . 1 . 2 . . . . . . . . . . . . . . . . . . Drone Launches . | . . . . . . . . . . . . . . . . . . . . . . . Drone Recoveries . | . . . . . . . . . . . . . . . . . . . . . . . Exploration | -11 -10 -10 -9 -9 -9 -8 -8 -8 -8 -8 -7 -7 -6 -6 -5 -5 -4 -4 -4 -3 -3 -3 ------------- Run | Yrd Mat Min Mat Min Exi Min Mat Gar Mat Gar Fac Gar Fac Gar Fac Gar Fac Ext Cet Res Gar Tes Turns Passed 27141 | 225 1357 249 2587 1112 445 209 1933 2034 1289 965 2176 1325 1035 1901 884 1931 1017 1228 405 995 1406 433 Spaces Moved 13319 | 100 629 150 1210 536 220 101 601 811 471 400 1196 684 554 859 573 1096 632 772 151 720 693 160 Core 85 | 81 . . . . . . . . . . . . . . . . . . . . . 4 Treads 8041 | 19 629 150 1210 536 220 101 601 811 471 400 1196 684 554 459 . . . . . . . . Legs 5193 | . . . . . . . . . . . . . . 400 573 1096 632 772 151 720 693 156 Wheels . | . . . . . . . . . . . . . . . . . . . . . . . Hover . | . . . . . . . . . . . . . . . . . . . . . . . Flight . | . . . . . . . . . . . . . . . . . . . . . . . Fastest Speed 50 | 50 160 160 160 160 200 200 200 158 208 155 160 160 160 162 120 114 112 114 118 115 120 50 Average Speed 162 | 163 160 160 171 199 200 200 215 210 208 200 160 160 161 178 120 140 119 115 122 120 137 186 Slowest Speed 260 | 200 160 160 240 200 200 200 224 224 208 208 160 200 162 260 185 190 120 118 123 123 190 190 Overloaded Moves . | . . . . . . . . . . . . . . . . . . . . . . . Propulsion Burnouts . | . . . . . . . . . . . . . . . . . . . . . . . Robots Hopped . | . . . . . . . . . . . . . . . . . . . . . . . Potential Cave-ins 6 | . . . . . . . 6 . . . . . . . . . . . . . . . Cave-ins Triggered 1 | . . . . . . . 1 . . . . . . . . . . . . . . . Exploration Rate (%) 51 | 7 97 35 95 88 61 31 45 79 51 43 37 68 19 66 11 77 19 89 71 28 46 20 Regions Visited 22 Branch Regions 7 Pre-discovered Areas 5 | . 1 1 . 1 . . 2 . . . . . . . . . . . . . . . Known Exits Taken 11 | . . 1 1 . . 1 1 . 1 . 1 . 1 . 1 . 1 1 . 1 . . Unknown Exits Taken 5 | 1 1 . . 1 1 . . . . . . . . . . . . . 1 . . . Scrap Searched 5 | . . . . 4 . 1 . . . . . . . . . . . . . . . . Spaces Dug 129 | . . 4 . . . 8 24 25 . 3 15 10 . 3 11 1 10 2 . 5 3 5 Terrain Destroyed 499 | . . 11 64 6 . 9 83 54 14 9 16 61 4 6 13 8 42 26 3 12 24 34 Melee 47 | . . . . . . . 2 5 . 2 13 . . . 10 . 9 1 . 4 1 . Projectile 166 | . . . 32 6 . 1 41 2 14 1 3 . 4 6 3 8 3 7 3 8 19 5 AOE 282 | . . 11 32 . . 8 40 47 . 6 . 61 . . . . 30 18 . . . 29 Terrain Rammed . | . . . . . . . . . . . . . . . . . . . . . . . Walls Destroyed . | . . . . . . . . . . . . . . . . . . . . . . . Machines Disabled . | . . . . . . . . . . . . . . . . . . . . . . . Actions | -11 -10 -10 -9 -9 -9 -8 -8 -8 -8 -8 -7 -7 -6 -6 -5 -5 -4 -4 -4 -3 -3 -3 --------- Run | Yrd Mat Min Mat Min Exi Min Mat Gar Mat Gar Fac Gar Fac Gar Fac Gar Fac Ext Cet Res Gar Tes Total 17417 | 128 847 154 1577 556 225 105 1103 982 723 500 1372 827 669 1132 723 1424 856 1068 372 830 969 275 Wait 1977 | . 129 . 180 . . 1 400 18 195 14 61 35 40 84 71 117 118 179 168 26 76 65 Move 13296 | 99 628 149 1209 535 219 100 600 809 471 398 1196 682 554 857 573 1094 631 771 150 720 691 160 Hop . | . . . . . . . . . . . . . . . . . . . . . . . Pick Up 191 | 4 9 . 27 2 1 . 8 8 7 7 6 9 7 20 6 18 8 15 5 8 14 2 Fast Attach 54 | 5 . . 2 . . . . 1 1 1 2 . 3 5 . 5 4 5 1 1 15 3 Attach 110 | 2 1 . 4 1 . . 5 5 2 6 2 6 4 16 8 8 11 4 1 4 18 2 Detach 24 | . . . . 1 . . . . . 1 . . 2 5 1 2 4 1 . 1 5 1 Swap 316 | . 2 2 34 5 3 2 14 25 7 22 31 17 12 19 8 20 26 21 12 10 21 3 Drop 196 | . 1 . 31 1 2 . 6 8 6 3 17 1 12 22 4 14 13 16 9 10 11 9 Fire 979 | 17 72 3 80 10 . 2 60 58 27 33 36 77 35 65 37 106 27 48 26 40 100 20 Melee 160 | . . . . 1 . . 4 36 2 8 15 . . 29 15 14 14 6 . 10 6 . Ram 4 | . . . . . . . . . . . . . . . . . . . . . . 4 Kick 4 | . . . . . . . . . . . . . . . . . . . . . 2 2 Crush 33 | 1 5 . 10 . . . 5 2 3 1 6 . . . . . . . . . . . Escape Stasis 62 | . . . . . . . 1 12 . 6 . . . 9 . 24 . . . . 10 . Rewire 11 | . . . . . . . . . 2 . . . . 1 . 2 . 2 . . . 4 Trap . | . . . . . . . . . . . . . . . . . . . . . . . Miscellaneous . | . . . . . . . . . . . . . . . . . . . . . . . Route ------- -11/Scrapyard -10/Materials (discovered 5 exits: *Mat x3 / [*Min] / *Sub) -10/Mines (discovered 3 exits: *Mat x2 / Sub) -9/Materials (discovered 5 exits: *Mat x3 / *Min x2) -9/Mines (discovered 3 exits: *Mat x2 / *Exi) -9/Exiles -8/Mines -8/Materials (discovered 4 exits: *Fac x2 / Sto / Gar) -8/Garrison (discovered 3 exits: *Mat x3) -8/Materials (discovered 2 exits: *Fac / Gar) -8/Garrison -7/Factory (discovered 5 exits: *Fac x2 / *Low x2 / Gar) -7/Garrison (discovered 2 exits: *Fac x2) -6/Factory (discovered 2 exits: *Fac / Gar) -6/Garrison (discovered 3 exits: *Fac x3) -5/Factory -5/Garrison (discovered 3 exits: *Fac x3) -4/Factory (discovered 4 exits: Upp x2 / *Ext x2) -4/Extension (discovered 2 exits: *Res / *Cet) -4/Cetus (discovered 2 exits: *Res / [*Arc]) -3/Research (discovered 2 exits: [*Res] / Gar) -3/Garrison -3/Testing History --------- Turn | Location | Event 6 | -11/Scrapyard | Discovered new exit (range 15) 226 | -11/Scrapyard | Entered Materials 303 | -10/Materials | Build established: Mutant 303 | -10/Materials | Discovered new exit (range 14) 418 | -10/Materials | Discovered new exit (range 10) 665 | -10/Materials | Discovered new exit (range 11) 731 | -10/Materials | Discovered new exit (range 11) 1081 | -10/Materials | Discovered new exit (range 8) 1295 | -10/Materials | Loaded intel: 8 terminal locations 1344 | -10/Materials | Learned Storage emergency access door positions 1447 | -10/Materials | Learned 2 Mines zone layouts 1450 | -10/Materials | Learned Storage terminal intel 1489 | -10/Materials | Learned location of Mines (-8) 1523 | -10/Materials | Learned location of 1 exit from Storage 1583 | -10/Materials | Entered Mines 1584 | -10/Mines | Identified exit to Materials 1584 | -10/Mines | Identified exit to Subcaves 1631 | -10/Mines | Learned location of Storage (-8) 1636 | -10/Mines | Learned Materials emergency access door positions 1802 | -10/Mines | Assembled infested the area 1832 | -10/Mines | Entered Materials 1832 | -9/Materials | Evolved 2 slots: Propulsion x1, Utility x1 1833 | -9/Materials | Identified exit to Materials 1833 | -9/Materials | Identified exit to Mines 2500 | -9/Materials | Build established: Scavenger-Mutant 3595 | -9/Materials | Build established: Mutant 4078 | -9/Materials | Repaired Hvy. Particle Cannon+ 4118 | -9/Materials | Repaired Hvy. Particle Cannon+ 4419 | -9/Materials | Entered Mines 4862 | -9/Mines | YI-UF0 nonchalantly dropped a Grenade Launcher on the ground 4892 | -9/Mines | Deemed a non-threat by the Exiles lab entrance 5134 | -9/Mines | Learned Materials machine intel 5148 | -9/Mines | Learned location of Zion (-6) 5521 | -9/Mines | Discovered new exit (range 5) 5531 | -9/Mines | Entered Exiles 5579 | -9/Exiles | Met 8R-AWN 5613 | -9/Exiles | Met EX-HEX 5669 | -9/Exiles | Met EX-BIN 5697 | -9/Exiles | Aligned with FarCom system 5699 | -9/Exiles | Given EX-Vault access code 5745 | -9/Exiles | Opened EX-Vault 5762 | -9/Exiles | Found AWS/Thermal 5803 | -9/Exiles | Warned to stay clear of 0b10 Research branches 5831 | -9/Exiles | Exiles lab attacked by MAIN.C 5958 | -9/Exiles | Discovered new exit (range 10) 5976 | -9/Exiles | Left Exiles lab with AWS/Thermal 5976 | -9/Exiles | Entered Mines 5992 | -8/Mines | Core integrity fell below 50% 6137 | -8/Mines | Discovered exit to Materials (range 15) 6185 | -8/Mines | Entered Materials 6185 | -8/Materials | Evolved 2 slots: Utility x2 6186 | -8/Materials | Loaded intel: 57 machine locations 7250 | -8/Materials | Crushed by falling debris 7539 | -8/Materials | Discovered new exit (range 16) 7731 | -8/Materials | Central database locked down 7794 | -8/Materials | Learned Factory scanalyzer intel 7848 | -8/Materials | Learned location of 1 exit from Extension 7922 | -8/Materials | Learned location of Extension (-4) 7945 | -8/Materials | Learned 4 Factory zone layouts 7960 | -8/Materials | Learned Storage emergency access door positions 7963 | -8/Materials | Learned Factory fabricator intel 7999 | -8/Materials | Identified exit to Storage 7999 | -8/Materials | Identified exit to Factory 8031 | -8/Materials | Learned location of 1 exit from Lower Caves 8072 | -8/Materials | Learned 2 Lower Caves zone layouts 8118 | -8/Materials | Identified exit to Garrison 8118 | -8/Materials | Entered Garrison 8118 | -8/Garrison | Accompanied by 1 ally 8290 | -8/Garrison | Triggered checkpoint 8345 | -8/Garrison | Garrison Relay disabled 8498 | -8/Garrison | Triggered checkpoint 8552 | -8/Garrison | Triggered checkpoint 8662 | -8/Garrison | Destroyed 7 combat bots 8712 | -8/Garrison | Triggered checkpoint 8776 | -8/Garrison | Destroyed 7 combat bots 8839 | -8/Garrison | Discovered new exit (range 8) 8887 | -8/Garrison | Garrison Relay disabled 8923 | -8/Garrison | Garrison Relay disabled 9236 | -8/Garrison | Triggered checkpoint 9320 | -8/Garrison | Discovered new exit (range 11) 9376 | -8/Garrison | Triggered checkpoint 9624 | -8/Garrison | Triggered checkpoint 9811 | -8/Garrison | Discovered new exit (range 13) 9932 | -8/Garrison | Triggered checkpoint 9986 | -8/Garrison | Garrison Relay disabled 10024 | -8/Garrison | Installed Relay Interface Framework 10152 | -8/Garrison | Entered Materials 10329 | -8/Materials | Build established: Bothacker-Mutant 11374 | -8/Materials | Garrison activated, responded to threat 11415 | -8/Materials | Discovered exit to Factory (range 9) 11441 | -8/Materials | Identified exit to Garrison 11441 | -8/Materials | Entered Garrison 11534 | -8/Garrison | Expanded RIF knowledge: Zone Cloak 11695 | -8/Garrison | Triggered checkpoint 11751 | -8/Garrison | Lost 3 parts (2u1w) 11782 | -8/Garrison | Garrison Relay disabled 11829 | -8/Garrison | Rescued a captive Derelict 11949 | -8/Garrison | Triggered checkpoint 11963 | -8/Garrison | Triggered checkpoint 11988 | -8/Garrison | Destroyed 8 combat bots 12078 | -8/Garrison | Discovered exit to Factory (range 15) 12165 | -8/Garrison | Triggered checkpoint 12194 | -8/Garrison | Garrison Relay disabled 12297 | -8/Garrison | Core integrity fell below 50% 12332 | -8/Garrison | Expanded RIF knowledge: Signal Jamming 12406 | -8/Garrison | Entered Factory 12406 | -7/Factory | Evolved 2 slots: Power x1, Propulsion x1 12408 | -7/Factory | Loaded intel: 6 fabricator locations 12409 | -7/Factory | Loaded intel: 4 scanalyzer locations 13084 | -7/Factory | Identified exit to Lower Caves 14460 | -7/Factory | Discovered new exit (range 15) 14550 | -7/Factory | Discovered new exit (range 11) 14582 | -7/Factory | Identified exit to Garrison 14582 | -7/Factory | Entered Garrison 14606 | -7/Garrison | Expanded RIF knowledge: Patrol Navigation 14648 | -7/Garrison | Triggered checkpoint 14773 | -7/Garrison | Garrison Relay disabled 15036 | -7/Garrison | Triggered checkpoint 15074 | -7/Garrison | Triggered checkpoint 15077 | -7/Garrison | Destroyed 8 combat bots 15112 | -7/Garrison | Lost 4 parts (1p3n) 15218 | -7/Garrison | Triggered checkpoint 15310 | -7/Garrison | Discovered new exit (range 8) 15364 | -7/Garrison | Found embedded Infiltrators 15569 | -7/Garrison | Rescued a captive Derelict 15569 | -7/Garrison | Rescued a captive Derelict 15610 | -7/Garrison | Discovered new exit (range 10) 15645 | -7/Garrison | Triggered checkpoint 15678 | -7/Garrison | Triggered checkpoint 15765 | -7/Garrison | Garrison Relay disabled 15907 | -7/Garrison | Entered Factory 15907 | -6/Factory | Accompanied by 7 allies 15907 | -6/Factory | Evolved 2 slots: Utility x1, Weapon x1 15991 | -6/Factory | Discovered new exit (range 14) 16008 | -6/Factory | Build established: Botlord-Mutant 16038 | -6/Factory | Lost 4 allies 16322 | -6/Factory | Build established: Bothacker-Mutant 16942 | -6/Factory | Identified exit to Garrison 16942 | -6/Factory | Entered Garrison 17044 | -6/Garrison | Triggered checkpoint 17104 | -6/Garrison | Garrison Relay disabled 17292 | -6/Garrison | Triggered checkpoint 17302 | -6/Garrison | Triggered checkpoint 17386 | -6/Garrison | Lost 3 parts (2p1u) 17506 | -6/Garrison | Discovered new exit (range 13) 17630 | -6/Garrison | Triggered checkpoint 17668 | -6/Garrison | Discovered new exit (range 9) 17724 | -6/Garrison | Triggered checkpoint 17788 | -6/Garrison | Garrison Relay disabled 18148 | -6/Garrison | Triggered checkpoint 18173 | -6/Garrison | Expanded RIF knowledge: Coupler Efficiency 18583 | -6/Garrison | Discovered new exit (range 12) 18620 | -6/Garrison | Triggered checkpoint 18770 | -6/Garrison | Garrison Relay disabled 18843 | -6/Garrison | Entered Factory 18843 | -5/Factory | Evolved 2 slots: Propulsion x1, Utility x1 19078 | -5/Factory | Build established: Botlord-Mutant 19278 | -5/Factory | P-70 Sage assimilated allied Sentinel 6a 19363 | -5/Factory | Lost 4 parts (2p2n) 19596 | -5/Factory | Build established: Bothacker-Mutant 19625 | -5/Factory | Garrison activated, responded to threat 19720 | -5/Factory | Identified exit to Garrison 19727 | -5/Factory | Entered Garrison 19727 | -5/Garrison | Accompanied by 2 allies 19914 | -5/Garrison | Garrison Relay disabled 19960 | -5/Garrison | Triggered checkpoint 20007 | -5/Garrison | Triggered checkpoint 20023 | -5/Garrison | Triggered checkpoint 20251 | -5/Garrison | Triggered checkpoint 20317 | -5/Garrison | Triggered checkpoint 20377 | -5/Garrison | Lost 4 allies 20401 | -5/Garrison | Triggered checkpoint 20457 | -5/Garrison | Garrison Relay disabled 20542 | -5/Garrison | Discovered new exit (range 12) 20655 | -5/Garrison | Triggered checkpoint 20698 | -5/Garrison | Found Unknown Device 20698 | -5/Garrison | Identified Quantum Capacitor 20937 | -5/Garrison | Expanded RIF knowledge: Program Shield 21057 | -5/Garrison | Garrison Relay disabled 21064 | -5/Garrison | Triggered checkpoint 21165 | -5/Garrison | Triggered checkpoint 21180 | -5/Garrison | Discovered new exit (range 14) 21245 | -5/Garrison | Build established: Botlord-Mutant 21439 | -5/Garrison | Triggered checkpoint 21482 | -5/Garrison | Lost 3 allies 21532 | -5/Garrison | Lost 6 parts (1p4n1w) 21560 | -5/Garrison | Garrison Relay disabled 21595 | -5/Garrison | Found embedded Infiltrators 21637 | -5/Garrison | Discovered new exit (range 10) 21658 | -5/Garrison | Entered Factory 21658 | -4/Factory | Accompanied by 3 allies 21658 | -4/Factory | Evolved 2 slots: Propulsion x1, Utility x1 21908 | -4/Factory | First assault squad dispatched 21921 | -4/Factory | Repaired Remote Shield 22165 | -4/Factory | Garrison activated, responded to threat 22248 | -4/Factory | AWS/Thermal suddenly broke down 22355 | -4/Factory | Lost 3 parts (1p1u1w) 22413 | -4/Factory | Identified exit to Upper Caves 22413 | -4/Factory | Identified exit to Extension 22661 | -4/Factory | Build established: Bothacker-Mutant 22675 | -4/Factory | Entered Extension 22676 | -4/Extension | Identified exit to Cetus 22704 | -4/Extension | Lost 5 parts (3n2u) 22919 | -4/Extension | Rescued a captive Derelict 22919 | -4/Extension | Rescued a captive Derelict 23261 | -4/Extension | Spotted B-86 Titan 23264 | -4/Extension | Assimilated Titan 7a with formatsys_high 23271 | -4/Extension | Spotted B-86 Titan 23273 | -4/Extension | Allies destroyed B-86 Titan 23463 | -4/Extension | Rescued A7 23525 | -4/Extension | Disrupted transfer network 23566 | -4/Extension | Lost 3 allies 23693 | -4/Extension | Repaired Broken Quantum Capacitor 23848 | -4/Extension | Discovered new exit (range 10) 23903 | -4/Extension | Entered Cetus 23903 | -4/Cetus | Accompanied by 5 allies (A7) 23908 | -4/Cetus | Acquired a Cetus Manufacturing Module code from A7 23918 | -4/Cetus | Spotted Cetus Guard 23918 | -4/Cetus | Spotted Cetus Guard 23926 | -4/Cetus | Spotted Cetus Guard 23926 | -4/Cetus | Spotted Cetus Guard 23927 | -4/Cetus | Allies destroyed Cetus Guard 23931 | -4/Cetus | Destroyed Cetus Guard 23933 | -4/Cetus | Destroyed Cetus Guard 23946 | -4/Cetus | Allies destroyed Cetus Guard 23977 | -4/Cetus | Lost 3 allies 24013 | -4/Cetus | Started Cetus Manufacturing Module 24024 | -4/Cetus | Escorted A7 to Cetus Mainframe 24035 | -4/Cetus | Discovered new exit (range 20) 24038 | -4/Cetus | Manufactured an Enhanced Grunt 24063 | -4/Cetus | Manufactured an Enhanced Grunt 24088 | -4/Cetus | Manufactured an Enhanced Grunt 24113 | -4/Cetus | Manufactured an Enhanced Grunt 24138 | -4/Cetus | Manufactured an Enhanced Grunt 24210 | -4/Cetus | Build established: Scavenger-Mutant 24213 | -4/Cetus | Spotted Cetus Guard 24213 | -4/Cetus | Spotted Cetus Guard 24217 | -4/Cetus | Spotted Cetus Guard 24218 | -4/Cetus | Spotted Cetus Guard 24220 | -4/Cetus | Destroyed Cetus Guard 24224 | -4/Cetus | Allies destroyed Cetus Guard 24228 | -4/Cetus | Rewired Cetus Guard 24237 | -4/Cetus | Destroyed Cetus Guard 24243 | -4/Cetus | Discovered new exit (range 19) 24263 | -4/Cetus | Met Revision 17 24308 | -4/Cetus | Entered Research 24308 | -3/Research | Accompanied by 7 allies (A7) 24308 | -3/Research | Evolved 2 slots: Utility x2 24313 | -3/Research | Received a hacking code to weaken MAIN.C 24508 | -3/Research | Revision forces began assault on 0b10 24558 | -3/Research | Met up with Revision 17++ 25008 | -3/Research | Research terminal network offline 25070 | -3/Research | Spotted B-86 Titan 25102 | -3/Research | Allies destroyed B-86 Titan 25247 | -3/Research | Lost 3 allies 25276 | -3/Research | Discovered new exit (range 13) 25291 | -3/Research | Identified exit to Garrison 25303 | -3/Research | Entered Garrison 25436 | -3/Garrison | Lost 12 parts (6n4u2w) 25578 | -3/Garrison | Triggered checkpoint 25645 | -3/Garrison | Triggered checkpoint 25725 | -3/Garrison | Garrison Relay disabled 25854 | -3/Garrison | Spotted B-86 Titan 25885 | -3/Garrison | Lost 4 parts (3u1w) 25996 | -3/Garrison | Destroyed B-86 Titan 26182 | -3/Garrison | Lost 4 parts (2n1u1w) 26416 | -3/Garrison | Discovered new exit (range 7) 26524 | -3/Garrison | Build established: Scavenger-Tank 26535 | -3/Garrison | Triggered checkpoint 26571 | -3/Garrison | Garrison Relay disabled 26709 | -3/Garrison | Entered Testing 26710 | -3/Testing | Maximum security lockdown engaged 26764 | -3/Testing | Found Prototype Energy Cannon 26764 | -3/Testing | Identified Imp. Potential Cannon 26768 | -3/Testing | Found Prototype Energy Cannon 26775 | -3/Testing | Identified Potential Cannon 26949 | -3/Testing | Found Prototype Ballistic Gun 26949 | -3/Testing | Identified Hyp. Multirail 27135 | -3/Testing | Core integrity fell below 50% 27140 | -3/Testing | Core integrity fell below 20% 27142 | -3/Testing | Destroyed by G-67 Veteran with Field Laser Last Messages --------------- 27136_ Attempting to rewire L-61 Swordsman. 27136_ Relay Coupler [Swarmer] severed. 27136_ P-80 Master resets G-67 Veteran, system corruption cleaned. 27137_ Slammed into L-61 Swordsman. 27138_ Relay Coupler [Demolisher] destroyed. 27139_ Penetrated by Slug. 27139_ Slug penetrates L-61 Swordsman. 27139_ L-61 Swordsman suffers critical hit (Destroy). 27139_ Slug penetrates G-73 Enforcer. 27139_ L-61 Swordsman destroyed. 27139_ Acquired 73 matter. 27140_ L-61 Swordsman reactivates. 27140_ Slammed into G-67 Veteran. 27140_ M-36 Artificer repairs P-80 Master Gamma Rifle. 27140_ P-80 Master resets L-61 Swordsman, system corruption cleaned. 27141_ Slug penetrates H-77 Assassin. 27141_ Slammed into G-67 Veteran. 27141_ Destabilizing: System corrupted (+1). 27142_ Slammed into G-67 Veteran. 27142_ Penetrated by Slug. Map ----- +----------------------------------------------------+ | ????????? ?????????????????????????????????????? | | ????????? #????????????????????????????????????? | | ?????????# #????????????????????????????????????? | | ?????????# #????????????????????????????????????? | | ?????????# #????????????????????????????????????? | | ?????????# #????????????????????????????????????? | | ?????????# ########?####????????????????????????? | | ?????????# # #?# #????????????????????????? | | ?????????# #/ !##""["##??????????????????????? | | ?????????# # # "#??????????????????????? | | ?????????# # " """#??????????????????????? | | ?????????# "# "" "#??????????????????????? | | ?????????+"%/ "%" #??????????????????????? | | ?????????# "###""""""#/####??????????????????????? | | ?????????# */=#??????????????????????? | | ?????????# ![%#??????????????????????? | | ?????????# ############[=#??????????????????????? | | ?????????# #??????????#%[#??????????????x???????? | | ?????????# #??????????#=l#??????????????x???????? | | ?????????+ +??????????#!g#??????????????????????? | | ?????????# #??????????#=!##?????????????????????? | | ?????????# #??????????#lpm#######???????????????? | | ?????????# #??????????#![#!*" "#???????????????? | | ????????? ??????????#* #!/ ""#???????????????? | | ????????? " ??????????#gg# """"#???????????????? | | ????????? ??????????#g@# """#???????????????? | | ????????# ?????????#[hpg """#???????????????? | | ????????#####????????# !i=; """"#???????????????? | | ?????????????????????# =h*[ "#???????????????? | | ?????????????????????#;!=[[;######???????????????? | | ????????????????????? ;%[; ????????????????????? | | ???????????????????? ; %; #???????????????????? | | ???????????????????""" ; % ##########????????????? | | ?????????????????? """ + %# """"" #????????????? | | ?????????????????" """ # # ""T"" #????????????? | | ???????????????????? # # #????????????? | | ???????????????????? # # #????????????? | | ???????????????????? ?# C# #????????????? | | ????????????????????##?# # """""" #????????????? | | ???????????????????????# # """""" #????????????? | | ???????????????????????# C+ """""" #????????????? | | ???????????????????????# #########??????????????? | | ???????????????????????# C#??????????????????????? | | ???????????????????????# #??????????????????????? | | ???????????????????????# #??????????????????????? | | ???????????????????????# #??????????????????????? | | ???????????????????????# #??????????????????????? | | ????????????????##?##### #??????????????????????? | | ??????????????###"##"##" #??????????????????????? | | ??????????????# # #??????????????????????? | +----------------------------------------------------+ Best States ------------- Heat Dissipation 198 Energy Generation 43 Energy Capacity 785 Matter Stores 300 Matter Capacity 300 Sight Range 20 Terrain Scan Density 10 Base Temperature (-) 200 EM Shielding 2 Corruption Block 15 Armor Coverage 450 Resistance: EM 15 Propulsion Shielding 33 Phase Shifting 15 Evasion (%) 80 Targeting Accuracy 6 Core Analysis 6 Recoil Reduction 4 Particle Charging 25 Defensive Hacking 10 Relay Coupler Types 4 Relay Coupler Value 99 Item Schematics ----------------- None Robot Schematics ------------------ None Fabricated ------------ Nothing Repaired ---------- Hvy. Particle Cannon | 7% | -9/Materials Hvy. Particle Cannon | 67% | -9/Materials Remote Shield | 72% | -4/Factory Quantum Capacitor | 13% | -4/Extension | Broken Studied --------- Hvy. Particle Cannon | -9/Materials | Hacked Lgt. Treads | -9/Materials | Hacked Hvy. Assault Rifle | -9/Materials | Hacked Grenade Launcher | -9/Materials | Hacked Imp. Treads | -9/Materials | Hacked Mni. Grenade Launcher | -9/Materials | Hacked Hvy. Hammer | -9/Materials | Hacked Datajack | -9/Materials | Hacked Plasma Cannon | -7/Factory | Hacked Alien Tech Used ----------------- None Achievements -------------- Drive-By Hack The Planet Hackerman Join The Dark Side Max Potential Mindtrick Oppo Buddy Pwned Satisfying Versatile You Will Be Upgraded Zeroed Repercussions Challenges ------------ None Game ------ Seed LatentStorageField Manual? 0 Play Time 03:59:51 Cumulative 222.7 hours Start 2025.11.05 @ 21:18:40 End 2025.11.06 @ 22:50:24 Sessions 3 Manual Loads 0 Difficulty Rogue Special Mode None Game No. 179 Rogue 179 Adventurer 0 Explorer 0 Win Type - Total 5 Types 3/0/0/2/0/0/0/0/0/0 Lore% 76 Gallery% 69 Achievement% 51 Wizard Run 0 Options --------- Layout 0 ASCII 0 Keyboard 1 Movement Numpad Keybinds 0 Fullscreen 1 Font 24/Terminus Map View 76x50 Zoom Use 0% Tactical HUD 1 Map Filters NONE Filters NONE Steam 1 RUN: 0fff87b2-cf1d-4056-9c79-4550630206df